bitfinex/quotes_BTCUSD_20250904
["timestamp","ask_amount","ask_price","bid_price","bid_amount"]
[1757015592681,0.00074963,110080.0,110070.0,0.19000255]
[1757015592891,0.18243567,110080.0,110070.0,0.19000255]
[1757015593309,0.55773379,110080.0,110070.0,0.19000255]
[1757015593694,0.37604775,110080.0,110070.0,0.19000255]
[1757015594262,0.55773379,110080.0,110070.0,0.19000255]
[1757015594910,0.55773379,110080.0,110070.0,0.0083]
[1757015595124,0.55971379,110080.0,110070.0,0.1572]
[1757015595316,0.55971379,110080.0,110070.0,0.003]
[1757015595911,0.56097379,110080.0,110070.0,0.003]
[1757015596570,0.57017837,110080.0,110070.0,0.003]
[1757015597161,0.91017837,110080.0,110070.0,0.003]
[1757015597512,0.95702888,110080.0,110070.0,0.003]
[1757015598141,0.56094504,110080.0,110070.0,0.003]
[1757015598346,0.93624316,110080.0,110070.0,0.003]
[1757015600568,0.93750316,110080.0,110070.0,0.003]
[1757015601446,1.33578866,110080.0,110070.0,0.003]
[1757015601605,1.36136491,110080.0,110070.0,0.003]
[1757015601803,1.3808947,110080.0,110070.0,0.003]
[1757015605302,1.00559658,110080.0,110070.0,0.003]
[1757015605494,1.10997295,110080.0,110070.0,0.003]
[1757015607942,0.73467483,110080.0,110070.0,0.0062]
[1757015608117,1.10997295,110080.0,110070.0,0.0062]
[1757015608698,0.95577295,110080.0,110070.0,0.0062]
[1757015608905,1.10997295,110080.0,110070.0,0.0062]
[1757015610035,0.58047483,110080.0,110070.0,0.0083]
[1757015610257,0.93426316,110080.0,110070.0,0.19000255]
[1757015610476,0.90693837,110080.0,110070.0,0.19000255]
[1757015611335,0.90693837,110080.0,110070.0,0.0083]
[1757015611987,1.06113837,110080.0,110070.0,0.0083]
[1757015612920,1.43841649,110080.0,110070.0,0.003]
[1757015613390,0.55896454,110080.0,110070.0,0.19000255]
[1757015613651,1.08846266,110080.0,110070.0,0.19000255]
[1757015613832,1.08846266,110080.0,110070.0,0.0083]
[1757015614184,1.09044266,110080.0,110070.0,0.0062]
[1757015614385,1.46574078,110080.0,110070.0,0.003]
[1757015619232,1.09044266,110080.0,110070.0,0.003]
[1757015620675,1.46700078,110080.0,110070.0,0.003]
[1757015620846,1.11000018,110080.0,110070.0,0.003]
[1757015621636,0.95580018,110080.0,110070.0,0.003]
[1757015621848,1.11000018,110080.0,110070.0,0.00825]
[1757015622245,1.11000018,110080.0,110070.0,0.00621]
[1757015623703,1.11000018,110080.0,110070.0,0.00825]
[1757015624633,1.11000018,110080.0,110070.0,0.003]
[1757015625579,0.95580018,110080.0,110070.0,0.003]
[1757015625802,1.11000018,110080.0,110070.0,0.00825]
[1757015627680,1.11000018,110080.0,110070.0,0.00621]
[1757015628446,1.11000018,110080.0,110070.0,0.00825]
[1757015629415,1.11000623,110080.0,110070.0,0.00825]
[1757015630257,1.10996623,110080.0,110070.0,0.00825]
[1757015631319,0.73268811,110080.0,110070.0,0.18995255]
[1757015631521,0.36807392,110080.0,110070.0,0.18995255]
[1757015631705,0.34074963,110080.0,110070.0,0.18995255]
[1757015632443,0.00074963,110080.0,110070.0,0.18995255]
[1757015634315,0.37604775,110080.0,110070.0,0.18995255]
[1757015635354,0.37604775,110080.0,110070.0,0.003]
[1757015635355,1.30514762,110080.0,110070.0,0.003]
[1757015635557,1.70785438,110080.0,110070.0,0.003]
[1757015638286,1.70659438,110080.0,110070.0,0.003]
[1757015641797,1.86075519,110080.0,110070.0,0.003]
[1757015643604,3.84642939,110080.0,110070.0,0.003]
[1757015643810,4.36369688,110080.0,110070.0,0.003]
[1757015644020,3.98837094,110080.0,110070.0,0.003]
[1757015644249,4.01384061,110080.0,110070.0,0.003]
[1757015644457,4.42173389,110080.0,110070.0,0.003]
[1757015644662,0.18173557,110050.0,110040.0,0.00325703]
[1757015644872,1.08654745,110050.0,110040.0,0.00325703]
[1757015645076,1.08654745,110050.0,110040.0,0.00529703]
[1757015645485,0.33589557,110050.0,110040.0,0.18704912]
[1757015645688,0.71122151,110050.0,110040.0,0.18704912]
[1757015645868,0.71122151,110050.0,110040.0,0.00529703]
[1757015646068,0.71122151,110050.0,110040.0,0.00929703]
[1757015646633,0.55706151,110050.0,110040.0,0.19104912]
[1757015647386,0.55706151,110050.0,110040.0,0.19304912]
[1757015648765,0.71122151,110050.0,110040.0,0.19304912]
[1757015649083,0.52948594,110050.0,110040.0,0.19304912]
[1757015649287,0.71122151,110050.0,110040.0,0.19304912]
[1757015649463,0.37532594,110050.0,110040.0,0.19304912]
[1757015650123,0.55706151,110050.0,110040.0,0.19304912]
[1757015650319,0.58438993,110060.0,110040.0,0.19304912]
[1757015650519,0.55706151,110050.0,110040.0,0.18983912]
[1757015651119,0.55706151,110050.0,110040.0,0.19080912]
[1757015651344,0.37532594,110050.0,110040.0,0.19080912]
[1757015651551,0.37532594,110050.0,110040.0,0.19180912]
[1757015651906,0.37532594,110050.0,110040.0,0.19080912]
[1757015652106,0.37532594,110050.0,110040.0,0.19280912]
[1757015652553,0.55706151,110050.0,110040.0,0.19280912]
[1757015652772,0.37532594,110050.0,110040.0,0.19280912]
[1757015653393,0.52171951,110060.0,110050.0,0.18173557]
[1757015653553,1.27237139,110060.0,110050.0,0.18173557]
[1757015653761,1.27237139,110060.0,110050.0,0.18669557]
[1757015654531,1.27237139,110060.0,110050.0,0.18769557]
[1757015654871,1.27237139,110060.0,110050.0,0.18969557]
[1757015655449,1.42653139,110060.0,110050.0,0.18969557]
[1757015656313,0.67587951,110060.0,110050.0,0.18969557]
[1757015656619,1.42851139,110060.0,110050.0,0.18969557]
[1757015656819,1.42653139,110060.0,110050.0,0.00796]
[1757015657181,1.42653139,110060.0,110050.0,0.18969557]
[1757015657951,1.42851139,110060.0,110050.0,0.18969557]
[1757015658384,1.42653139,110060.0,110050.0,0.18969557]
[1757015659393,1.24481188,110060.0,110050.0,0.18969557]
[1757015659585,0.01425349,110070.0,110060.0,0.18171906]
[1757015659793,0.34591274,110080.0,110070.0,0.18170255]
[1757015660002,1.43656462,110080.0,110070.0,0.18666255]
[1757015660142,1.43854462,110080.0,110070.0,0.00297]
[1757015660362,1.43854462,110080.0,110070.0,0.18666255]
[1757015660578,0.5042267,110080.0,110070.0,0.18666255]
[1757015660782,0.49490963,110080.0,110070.0,0.18666255]
[1757015660974,1.42724755,110080.0,110070.0,0.18666255]
[1757015661586,1.17659567,110080.0,110070.0,0.18666255]
[1757015661782,1.55390161,110080.0,110070.0,0.18666255]
[1757015662359,1.55192161,110080.0,110070.0,0.18666255]
[1757015662535,1.55292161,110080.0,110070.0,0.18666255]
[1757015663033,1.55192161,110080.0,110070.0,0.18666255]
[1757015664160,1.55192161,110080.0,110070.0,0.18766255]
[1757015664519,1.40556151,110080.0,110070.0,0.18766255]
[1757015664761,1.03019557,110080.0,110070.0,0.18766255]
[1757015666127,0.53019557,110080.0,110070.0,0.18766255]
[1757015666481,0.37607557,110080.0,110070.0,0.18766255]
[1757015666687,0.00074963,110080.0,110070.0,0.56298849]
[1757015666894,0.00074963,110080.0,110070.0,0.18766255]
[1757015668283,0.37607557,110080.0,110070.0,0.18766255]
[1757015669961,0.37607557,110080.0,110070.0,0.34178255]
[1757015670413,0.00074963,110080.0,110070.0,0.71710849]
[1757015671061,0.00074963,110080.0,110070.0,0.56298849]
[1757015671274,0.00074963,110080.0,110070.0,0.34078255]
[1757015671690,0.00074963,110080.0,110070.0,0.34478255]
[1757015671873,0.00074963,110080.0,110070.0,0.19066255]
[1757015672061,0.00074963,110080.0,110070.0,0.34578255]
[1757015672306,0.00074963,110080.0,110070.0,0.19166255]
[1757015672481,0.00074963,110080.0,110070.0,0.34478255]
[1757015672700,0.37607557,110080.0,110070.0,0.19266255]
[1757015672913,0.37607557,110080.0,110070.0,0.34678255]
[1757015673344,0.37607557,110080.0,110070.0,0.19266255]
[1757015673553,0.37607557,110080.0,110070.0,0.34678255]
[1757015674566,0.37607557,110080.0,110070.0,0.19266255]
[1757015674799,0.37607557,110080.0,110070.0,0.34678255]
[1757015675234,0.33598999,110090.0,110080.0,0.18168604]
[1757015675408,0.71329593,110090.0,110080.0,0.18168604]
[1757015675819,0.33796999,110090.0,110080.0,0.18168604]
[1757015675981,0.71329593,110090.0,110080.0,0.18168604]
[1757015676373,0.71338142,110090.0,110080.0,0.18268604]
[1757015677585,0.71338142,110090.0,110080.0,0.18468604]
[1757015678815,0.71334142,110090.0,110080.0,0.19005604]
[1757015679024,0.00028549,110090.0,110080.0,0.19005604]
[1757015679206,0.37561143,110090.0,110080.0,0.19005604]
[1757015680239,0.00028549,110090.0,110080.0,0.56538198]
[1757015680619,0.00028549,110090.0,110080.0,1.03262391]
[1757015680829,0.00028549,110090.0,110080.0,1.06182391]
[1757015681621,0.00028549,110090.0,110080.0,0.33748469]
[1757015681828,0.00028549,110090.0,110080.0,1.24421657]
[1757015682170,0.00028549,110090.0,110080.0,1.25021657]
[1757015688532,0.00028549,110090.0,110080.0,1.30021657]
[1757015690442,0.07447938,110130.0,110120.0,0.18162005]
[1757015690665,0.07388742,110130.0,110120.0,0.71098599]
[1757015690866,0.07586742,110130.0,110120.0,0.71098599]
[1757015691077,0.07586742,110130.0,110120.0,0.34103005]
[1757015691250,0.07586742,110130.0,110120.0,0.18699005]
[1757015691503,0.5592506,110130.0,110120.0,0.18162005]
[1757015691677,0.37764705,110130.0,110120.0,0.33566005]
[1757015692500,0.00232111,110130.0,110120.0,0.33566005]
[1757015692732,0.00232111,110130.0,110120.0,0.34103005]
[1757015693870,0.00232111,110130.0,110120.0,0.34503005]
[1757015694566,0.37764705,110130.0,110120.0,0.34503005]
[1757015695007,0.37764705,110130.0,110120.0,0.18885005]
[1757015695218,0.37764705,110130.0,110120.0,0.34289005]
[1757015696868,0.37764705,110130.0,110120.0,0.34503005]
[1757015697437,0.00232111,110130.0,110120.0,0.34503005]
[1757015697813,0.00232111,110130.0,110120.0,0.34289005]
[1757015698040,0.00034111,110130.0,110120.0,0.34503005]
[1757015698650,0.00881076,110130.0,110120.0,0.34503005]
[1757015699261,0.00881076,110130.0,110120.0,0.34499005]
[1757015700339,0.03156644,110130.0,110120.0,0.33962005]
[1757015700528,0.40508599,110130.0,110120.0,0.34285005]
[1757015700673,0.02832644,110130.0,110120.0,0.34499005]
[1757015702214,0.04724642,110130.0,110120.0,0.18562005]
[1757015702421,0.58668954,110130.0,110120.0,0.18562005]
[1757015703024,0.03030644,110130.0,110120.0,0.18885005]
[1757015703192,0.58668954,110130.0,110120.0,0.19099005]
[1757015703412,0.02832644,110130.0,110120.0,0.19099005]
[1757015705745,0.96272909,110130.0,110120.0,0.004]
[1757015705945,1.13368358,110130.0,110120.0,0.004]
[1757015706185,1.15807625,110130.0,110120.0,0.004]
[1757015706440,1.49807625,110130.0,110120.0,0.004]
[1757015706821,0.74725715,110130.0,110120.0,0.004]
[1757015706982,0.9680367,110130.0,110120.0,0.004]
[1757015707180,0.9692967,110130.0,110120.0,0.004]
[1757015708106,0.9692967,110130.0,110120.0,0.158]
[1757015708322,1.34407625,110130.0,110120.0,0.004]
[1757015709255,1.37659981,110130.0,110120.0,0.004]
[1757015710263,1.37664059,110130.0,110120.0,0.004]
[1757015711010,1.40395216,110130.0,110120.0,0.004]
[1757015711225,1.37955949,110130.0,110120.0,0.004]
[1757015711804,1.42845149,110130.0,110120.0,0.002]
[1757015712013,0.67889239,110130.0,110120.0,0.003]
[1757015712171,1.37829949,110130.0,110120.0,0.001]
[1757015712371,1.15751994,110130.0,110120.0,0.001]
[1757015712781,1.15751994,110130.0,110120.0,0.002]
[1757015713414,0.62874039,110130.0,110120.0,0.002]
[1757015713577,1.00351994,110130.0,110120.0,0.00412]
[1757015713782,1.02799784,110130.0,110120.0,0.00708]
[1757015714795,1.02799784,110130.0,110120.0,0.002]
[1757015716221,0.99547428,110130.0,110120.0,0.002]
[1757015718651,0.61871473,110130.0,110120.0,0.18870005]
[1757015718898,0.99349428,110130.0,110120.0,0.00708]
[1757015719079,0.97649901,110130.0,110120.0,0.00708]
[1757015719302,0.95202111,110130.0,110120.0,0.1909703]
[1757015719506,0.95202111,110130.0,110120.0,0.18870005]
[1757015719713,0.54992999,110130.0,110120.0,0.18870005]
[1757015720132,0.92474181,110130.0,110120.0,0.18870005]
[1757015720340,0.91623989,110130.0,110120.0,0.18870005]
[1757015720773,0.91631333,110130.0,110120.0,0.18870005]
[1757015721415,0.92481549,110130.0,110120.0,0.18870005]
[1757015721631,0.91631333,110130.0,110120.0,0.18870005]
[1757015724082,0.54153378,110130.0,110120.0,0.18870005]
[1757015724299,0.35993023,110130.0,110120.0,0.18870005]
[1757015725189,0.00034111,110130.0,110120.0,0.18870005]
[1757015725418,0.00034111,110130.0,110120.0,0.28061604]
[1757015725624,0.00034111,110130.0,110120.0,0.65539559]
[1757015726232,0.00034111,110130.0,110120.0,0.28061604]
[1757015727232,0.00034111,110130.0,110120.0,0.34757604]
[1757015727381,1.31439955,110150.0,110140.0,0.18158707]
[1757015727585,1.34384593,110150.0,110140.0,0.00296]
[1757015727790,1.34384593,110150.0,110140.0,0.18666707]
[1757015728650,0.89934593,110150.0,110140.0,0.18666707]
[1757015728794,0.5336449,110150.0,110140.0,0.18666707]
[1757015728989,0.90842445,110150.0,110140.0,0.18666707]
[1757015729385,0.91042445,110150.0,110140.0,0.18666707]
[1757015729856,0.91042445,110150.0,110140.0,0.00508]
[1757015730009,0.91042445,110150.0,110130.0,0.00296]
[1757015730010,0.18158707,110140.0,110130.0,0.00296]
[1757015730218,0.55762662,110140.0,110120.0,0.24857854]
[1757015730451,0.37674955,110130.0,110120.0,0.33869854]
[1757015730663,0.37477955,110130.0,110120.0,0.34081854]
[1757015731764,0.5583531,110130.0,110120.0,0.34077854]
[1757015731987,0.5583531,110130.0,110120.0,0.34377854]
[1757015732167,0.5583531,110130.0,110120.0,0.15708]
[1757015732504,0.5583531,110130.0,110120.0,0.33870005]
[1757015732751,0.5583531,110130.0,110120.0,0.34170005]
[1757015733574,0.5583531,110130.0,110120.0,0.16008]
[1757015733721,0.5583531,110130.0,110120.0,0.006]
[1757015733939,1.27313265,110130.0,110120.0,0.006]
[1757015734145,0.8983531,110130.0,110120.0,0.18974005]
[1757015734338,0.8983531,110130.0,110120.0,0.19270005]
[1757015734777,0.52160355,110130.0,110120.0,0.19270005]
[1757015734902,0.34,110130.0,110120.0,0.18970005]
[1757015735107,0.71477955,110130.0,110120.0,0.19170005]
[1757015735335,0.34,110130.0,110120.0,0.19170005]
[1757015735503,0.71477955,110130.0,110120.0,0.19170005]
[1757015735881,0.71477955,110130.0,110120.0,0.18870005]
[1757015736194,0.71477955,110130.0,110120.0,0.19070005]
[1757015736418,0.8963831,110130.0,110120.0,0.19070005]
[1757015736993,0.8983631,110130.0,110120.0,0.19070005]
[1757015737409,0.71477955,110130.0,110120.0,0.19070005]
[1757015738257,0.55636662,110140.0,110120.0,0.19070005]
[1757015738489,0.37477955,110130.0,110120.0,0.19070005]
[1757015738655,0.5563831,110130.0,110120.0,0.19070005]
[1757015738870,0.5563831,110130.0,110120.0,0.34478005]
[1757015739254,0.37477955,110130.0,110120.0,0.34478005]
[1757015739658,0.37675955,110130.0,110120.0,0.34478005]
[1757015739863,0.37477955,110130.0,110120.0,0.34278005]
[1757015740339,0.18158707,110140.0,110130.0,0.18160355]
[1757015740340,0.89636662,110140.0,110130.0,0.18160355]
[1757015740572,0.66348299,110150.0,110140.0,0.18158707]
[1757015740775,1.03826254,110150.0,110140.0,0.33764707]
[1757015740980,1.35095445,110150.0,110140.0,0.34084707]
[1757015741186,1.01095445,110150.0,110140.0,0.34084707]
[1757015741387,1.01293445,110150.0,110140.0,0.34084707]
[1757015741567,1.35293445,110150.0,110140.0,0.34084707]
[1757015741969,1.35293445,110150.0,110140.0,0.15926]
[1757015742170,1.35293445,110150.0,110140.0,0.15724]
[1757015742376,1.35293445,110150.0,110140.0,0.15404]
[1757015743283,1.35293445,110150.0,110140.0,0.33562707]
[1757015744541,1.35293445,110150.0,110140.0,0.15404]
[1757015744745,1.35293445,110150.0,110140.0,0.33562707]
[1757015745094,1.35095445,110150.0,110140.0,0.34084707]
[1757015745337,1.16027955,110150.0,110140.0,0.34084707]
[1757015745673,0.7855,110150.0,110140.0,0.34084707]
[1757015745790,0.96707058,110150.0,110140.0,0.34084707]
[1757015745991,1.34185013,110150.0,110140.0,0.34184707]
[1757015746193,1.34185013,110150.0,110140.0,0.34284707]
[1757015746397,0.89635013,110150.0,110140.0,0.34284707]
[1757015746796,0.89635013,110150.0,110140.0,0.34280707]
[1757015747009,0.89833013,110150.0,110140.0,0.18880707]
[1757015747209,0.89833013,110150.0,110140.0,0.34280707]
[1757015747477,0.89833013,110150.0,110140.0,0.18880707]
[1757015747772,0.89833013,110150.0,110140.0,0.34280707]
[1757015748038,0.89833013,110150.0,110140.0,0.002]
[1757015748238,0.89833013,110150.0,110140.0,0.156]
[1757015748668,0.52355058,110150.0,110140.0,0.33758707]
[1757015748840,0.67755058,110150.0,110140.0,0.33758707]
[1757015749045,1.05233013,110150.0,110140.0,0.156]
[1757015749248,1.05233013,110150.0,110140.0,0.33758707]
[1757015750244,0.89833013,110150.0,110140.0,0.156]
[1757015750645,0.89833013,110150.0,110140.0,0.1562]
[1757015750986,1.05253013,110150.0,110140.0,0.1562]
[1757015751218,1.05253013,110150.0,110140.0,0.33778707]
[1757015752162,1.05253013,110150.0,110140.0,0.34098707]
[1757015752924,1.05253013,110150.0,110140.0,0.1562]
[1757015753218,1.05253013,110150.0,110140.0,0.33778707]
[1757015753219,0.89833013,110150.0,110140.0,0.33778707]
[1757015753576,0.89833013,110150.0,110140.0,0.34098707]
[1757015754024,1.05245013,110150.0,110140.0,0.34098707]
[1757015754207,1.05245013,110150.0,110140.0,0.33770707]
[1757015754419,1.05245013,110150.0,110140.0,0.002]
[1757015754814,1.05245013,110150.0,110140.0,0.18358707]
[1757015754978,1.05245013,110150.0,110140.0,0.002]
[1757015755388,1.05371013,110150.0,110140.0,0.002]
[1757015755956,1.05245013,110150.0,110140.0,0.002]
[1757015757576,1.42722994,110150.0,110140.0,0.002]
[1757015757992,1.42722994,110150.0,110140.0,0.18358707]
[1757015758188,1.42722994,110150.0,110140.0,0.002]
[1757015758634,1.42722994,110150.0,110140.0,0.18358707]
[1757015758836,1.42722994,110150.0,110140.0,0.002]
[1757015759457,1.42848994,110150.0,110140.0,0.002]
[1757015759862,1.42722994,110150.0,110140.0,0.18358707]
[1757015760043,1.42722994,110150.0,110140.0,0.002]
[1757015760726,1.44147193,110150.0,110140.0,0.002]
[1757015760920,1.44273193,110150.0,110140.0,0.002]
[1757015761345,1.44305193,110150.0,110140.0,0.002]
[1757015761577,1.28735193,110150.0,110140.0,0.002]
[1757015761726,1.44179193,110150.0,110140.0,0.002]
[1757015764298,1.46138386,110150.0,110140.0,0.002]
[1757015765853,1.46122386,110150.0,110140.0,0.002]
[1757015766059,1.46122635,110150.0,110140.0,0.002]
[1757015766883,3.28313863,110150.0,110140.0,0.002]
[1757015767087,3.33770846,110150.0,110140.0,0.002]
[1757015767634,3.24579247,110150.0,110140.0,0.001]
[1757015768246,3.28469271,110150.0,110140.0,0.001]
[1757015768473,0.18162005,110120.0,110110.0,0.26466654]
[1757015768689,0.18162005,110120.0,110110.0,0.26683765]
[1757015768690,0.93117941,110120.0,110110.0,0.26683765]
[1757015769499,0.74955936,110120.0,110110.0,0.26983765]
[1757015769705,0.93117941,110120.0,110110.0,0.26983765]
[1757015771313,1.43117941,110120.0,110110.0,0.26983765]
[1757015771687,1.24955936,110120.0,110110.0,0.27283765]
[1757015771897,1.43117941,110120.0,110110.0,0.27283765]
[1757015772094,0.5,110120.0,110110.0,0.76882332]
[1757015776368,0.37477968,110140.0,110130.0,0.18160355]
[1757015776545,0.37477968,110140.0,110130.0,0.33795355]
[1757015776715,0.37477968,110140.0,110130.0,0.34106355]
[1757015777130,0.74943689,110150.0,110140.0,0.18158707]
[1757015777383,0.97187657,110150.0,110140.0,0.18469707]
[1757015777555,0.89833026,110150.0,110140.0,0.18469707]
[1757015777969,0.52355058,110150.0,110140.0,0.18672707]
[1757015778167,0.71675968,110150.0,110140.0,0.18672707]
[1757015778384,0.89833026,110150.0,110140.0,0.18672707]
[1757015779888,0.89833026,110150.0,110140.0,0.18772707]
[1757015780092,0.89833026,110150.0,110140.0,0.18872707]
[1757015780296,0.89833026,110150.0,110140.0,0.00714]
[1757015780522,1.05265026,110150.0,110140.0,0.002]
[1757015780729,0.71265026,110150.0,110140.0,0.002]
[1757015780950,0.71265026,110150.0,110140.0,0.18358707]
[1757015781670,0.71265026,110150.0,110140.0,0.002]
[1757015781951,0.71265026,110150.0,110140.0,0.00426983]
[1757015782159,0.71265026,110150.0,110140.0,0.1858569]
[1757015782363,0.71265026,110150.0,110140.0,0.18669707]
[1757015784850,0.89833026,110150.0,110140.0,0.18669707]
[1757015785063,0.89833026,110150.0,110140.0,0.18872707]
[1757015785848,0.52355058,110150.0,110140.0,0.18872707]
[1757015786029,0.89833026,110150.0,110140.0,0.18872707]
[1757015786399,0.34,110150.0,110140.0,0.18872707]
[1757015786598,0.71477968,110150.0,110140.0,0.18872707]
[1757015786840,0.34,110150.0,110140.0,0.18872707]
[1757015787178,0.71477968,110150.0,110140.0,0.18872707]
[1757015787718,0.89635026,110150.0,110140.0,0.34276707]
[1757015787940,0.71477968,110150.0,110140.0,0.34272707]
[1757015788177,0.71675968,110150.0,110140.0,0.18872707]
[1757015788379,0.89833026,110150.0,110140.0,0.18669707]
[1757015788701,0.89833026,110150.0,110140.0,0.34069707]
[1757015789244,0.89833026,110150.0,110140.0,0.34272707]
[1757015790427,0.89833026,110150.0,110140.0,0.18669707]
[1757015790621,1.05363026,110150.0,110140.0,0.002]
[1757015790841,1.42840994,110150.0,110140.0,0.002]
[1757015791061,1.49654531,110150.0,110140.0,0.002]
[1757015791281,1.89863362,110150.0,110140.0,0.002]
[1757015791499,1.52385394,110150.0,110140.0,0.002]
[1757015791714,2.31901276,110150.0,110140.0,0.002]
[1757015791939,2.32750601,110150.0,110140.0,0.002]
[1757015792151,2.70228569,110150.0,110140.0,0.002]
[1757015792384,2.91927014,110150.0,110140.0,0.002]
[1757015792613,0.52162005,110120.0,110110.0,0.00014111]
[1757015792842,1.42517941,110120.0,110110.0,0.00014111]
[1757015793065,1.42842941,110120.0,110110.0,0.00014111]
[1757015793329,1.45574365,110120.0,110110.0,0.00014111]
[1757015793860,1.45574365,110120.0,110110.0,0.00214111]
[1757015794334,1.30945071,110120.0,110110.0,0.00214111]
[1757015794549,1.46345071,110120.0,110110.0,0.00214111]
[1757015794737,1.46345071,110120.0,110110.0,0.00414111]
[1757015795391,1.30945071,110120.0,110110.0,0.00414111]
[1757015795606,1.46349071,110120.0,110110.0,0.00414111]
[1757015796016,1.30945071,110120.0,110110.0,0.00414111]
[1757015796209,1.46349071,110120.0,110110.0,0.00414111]
[1757015797208,0.55989135,110120.0,110110.0,0.00414111]
[1757015797424,1.46349071,110120.0,110110.0,0.00414111]
[1757015799534,1.26495904,110120.0,110110.0,0.00414111]
[1757015799737,1.44657909,110120.0,110110.0,0.00414111]
[1757015800629,1.44780909,110120.0,110110.0,0.00414111]
[1757015800750,1.44657909,110120.0,110110.0,0.00414111]
[1757015801422,1.44657909,110120.0,110110.0,0.00214111]
[1757015801837,1.44657909,110120.0,110110.0,0.00314111]
[1757015802035,1.29253909,110120.0,110110.0,0.00314111]
[1757015802276,1.44657909,110120.0,110110.0,0.00314111]
[1757015802495,1.29253909,110120.0,110110.0,0.00314111]
[1757015802695,1.44657909,110120.0,110110.0,0.00430111]
[1757015802809,1.44657909,110120.0,110110.0,0.00530111]
[1757015805848,1.41926485,110120.0,110110.0,0.00530111]
[1757015807584,1.41926485,110120.0,110110.0,0.00214111]
[1757015810551,1.46905848,110120.0,110110.0,0.00214111]
[1757015810757,1.31501848,110120.0,110110.0,0.00214111]
[1757015810962,1.4963734,110120.0,110110.0,0.00214111]
[1757015811187,1.4951434,110120.0,110110.0,0.00214111]
[1757015811601,1.29253977,110120.0,110110.0,0.00214111]
[1757015811796,1.44657977,110120.0,110110.0,0.00214111]
[1757015812407,1.460826,110120.0,110110.0,0.00214111]
[1757015812613,6.34276416,110120.0,110110.0,0.00214111]
[1757015812817,0.18171764,110070.0,110060.0,0.00316]
[1757015813021,0.931277,110070.0,110060.0,0.00316]
[1757015813176,0.71053732,110070.0,110060.0,0.00512]
[1757015813964,0.71053732,110070.0,110060.0,0.00812]
[1757015814181,0.55649732,110070.0,110060.0,0.00512]
[1757015814384,0.71053732,110070.0,110060.0,0.00512]
[1757015814608,0.18172799,110060.0,110040.0,0.34496498]
[1757015814823,0.37477968,110050.0,110040.0,0.43688097]
[1757015815044,0.37477968,110050.0,110040.0,0.28480097]
[1757015815208,0.37477968,110050.0,110040.0,0.28796097]
[1757015816269,0.37477968,110050.0,110040.0,0.28996097]
[1757015816678,0.37477968,110050.0,110040.0,0.28796097]
[1757015816904,0.37477968,110050.0,110040.0,0.29596097]
[1757015817868,0.71054767,110060.0,110050.0,0.18173557]
[1757015818236,0.55650767,110060.0,110050.0,0.18685557]
[1757015819423,0.55650767,110060.0,110050.0,0.19385557]
[1757015819640,0.18172799,110060.0,110050.0,0.19385557]
[1757015819904,0.37529092,110060.0,110050.0,0.19385557]
[1757015820037,0.55700998,110060.0,110050.0,0.19385557]
[1757015820274,0.37529092,110060.0,110050.0,0.19385557]
[1757015820478,0.55700998,110060.0,110050.0,0.19385557]
[1757015820703,0.18171906,110060.0,110050.0,0.19385557]
[1757015821249,0.55898998,110060.0,110050.0,0.01212]
[1757015821448,0.55898998,110060.0,110050.0,0.01016]
[1757015822097,0.18369906,110060.0,110050.0,0.007]
[1757015822299,0.71306998,110060.0,110050.0,0.007]
[1757015823054,0.71306998,110060.0,110050.0,0.01016]
[1757015823264,0.71306998,110060.0,110050.0,0.01212]
[1757015824153,0.55898998,110060.0,110050.0,0.19385557]
[1757015824374,0.71306998,110060.0,110050.0,0.19385557]
[1757015824575,0.55898998,110060.0,110050.0,0.19385557]
[1757015824988,0.71306998,110060.0,110050.0,0.19385557]
[1757015826884,0.66967465,110070.0,110050.0,0.19385557]
[1757015827101,0.15408,110060.0,110050.0,0.19069557]
[1757015827746,0.82375465,110070.0,110050.0,0.18963557]
[1757015827951,0.84321382,110070.0,110050.0,0.18963557]
[1757015828230,0.84321382,110070.0,110050.0,0.18669557]
[1757015828479,0.63546418,110070.0,110060.0,0.18465906]
[1757015828686,0.9437951,110070.0,110060.0,0.18675906]
[1757015828876,1.07054773,110070.0,110060.0,0.18675906]
[1757015829107,0.91646773,110070.0,110060.0,0.18675906]
[1757015829315,1.07054773,110070.0,110060.0,0.18675906]
[1757015829722,1.08188212,110070.0,110060.0,0.18675906]
[1757015829934,0.91646773,110070.0,110060.0,0.19075906]
[1757015830138,1.07054773,110070.0,110060.0,0.19075906]
[1757015830349,1.08744101,110070.0,110060.0,0.19075906]
[1757015830742,1.08941101,110070.0,110060.0,0.19075906]
[1757015830887,1.08941101,110070.0,110060.0,0.004]
[1757015831339,1.1228609,110070.0,110060.0,0.004]
[1757015831727,0.72317126,110070.0,110060.0,0.19075906]
[1757015831935,1.09846218,110070.0,110060.0,0.19075906]
[1757015832155,1.1228609,110070.0,110060.0,0.00904]
[1757015832353,1.13130991,110070.0,110060.0,0.004]
[1757015832600,1.1228609,110070.0,110060.0,0.004]
[1757015832926,1.13130983,110070.0,110060.0,0.004]
[1757015833120,0.75601891,110070.0,110060.0,0.004]
[1757015833323,1.13130983,110070.0,110060.0,0.004]
[1757015833738,1.13130974,110070.0,110060.0,0.004]
[1757015834917,1.13130974,110070.0,110060.0,0.00904]
[1757015835266,1.08745185,110070.0,110060.0,0.00904]
[1757015835470,1.13126828,110070.0,110060.0,0.004]
[1757015836931,1.13128628,110070.0,110060.0,0.004]
[1757015837291,1.1637429,110070.0,110060.0,0.004]
[1757015839159,1.53903382,110070.0,110060.0,0.004]
[1757015839569,1.1637429,110070.0,110060.0,0.004]
[1757015839772,1.13940044,110070.0,110060.0,0.004]
[1757015840936,0.98532044,110070.0,110060.0,0.004]
[1757015841139,1.13940044,110070.0,110060.0,0.004]
[1757015841319,1.18829244,110070.0,110060.0,0.004]
[1757015841686,1.18829244,110070.0,110060.0,0.00904]
[1757015842338,1.16220772,110070.0,110060.0,0.00904]
[1757015842755,1.15583582,110070.0,110060.0,0.00904]
[1757015843164,1.1304757,110070.0,110060.0,0.00904]
[1757015843305,1.15596652,110070.0,110060.0,0.00904]
[1757015843507,1.14746958,110070.0,110060.0,0.00904]
[1757015843709,1.15596659,110070.0,110060.0,0.00904]
[1757015844109,1.17021852,110070.0,110060.0,0.00904]
[1757015844430,1.14472763,110070.0,110060.0,0.00904]
[1757015845088,1.24472763,110070.0,110060.0,0.00904]
[1757015845510,1.24472763,110070.0,110060.0,0.19075906]
[1757015845713,1.24472763,110070.0,110060.0,0.00904]
[1757015846074,0.87540981,110070.0,110060.0,0.19075906]
[1757015846304,1.2833314,110070.0,110060.0,0.19075906]
[1757015846861,1.26633713,110070.0,110060.0,0.19075906]
[1757015847727,1.29265133,110070.0,110060.0,0.19075906]